[Event "*** Titled Tuesday Blitz"]
[Site "Chess.com"]
[Date "2021.04.20"]
[Round "11"]
[White "MerryPoppies"]
[Black "Klavdia_Nik"]
[Result "1-0"]
[WhiteElo "2133"]
[BlackElo "2047"]
[TimeControl "180+1"]
[EndTime "12:05:51 PDT"]
[Termination "MerryPoppies won on time"]

1. d4 {[%clk 0:03:00.9]} 1... Nf6 {[%clk 0:02:57.5]} 2. c4 {[%clk 0:03:00.8]}
2... c5 {[%clk 0:02:57.4]} 3. e3 {[%clk 0:03:00.2]} 3... b6 {[%clk 0:02:57.3]}
4. Nf3 {[%clk 0:02:58.4]} 4... Bb7 {[%clk 0:02:56.8]} 5. Nc3 {[%clk 0:02:51.5]}
5... g6 {[%clk 0:02:49.5]} 6. Be2 {[%clk 0:02:29.8]} 6... Bg7 {[%clk 0:02:46.6]}
7. O-O {[%clk 0:02:28.8]} 7... O-O {[%clk 0:02:46.5]} 8. d5 {[%clk 0:02:07.2]}
8... d6 {[%clk 0:02:45.8]} 9. e4 {[%clk 0:01:54.1]} 9... b5 {[%clk 0:02:45.5]}
10. cxb5 {[%clk 0:01:38.4]} 10... a6 {[%clk 0:02:44.2]} 11. bxa6 {[%clk
0:01:35.1]} 11... Bxa6 {[%clk 0:02:43.6]} 12. Rb1 {[%clk 0:01:17.2]} 12... Ng4
{[%clk 0:02:31.6]} 13. h3 {[%clk 0:00:56.1]} 13... Ne5 {[%clk 0:02:30]} 14. a3
{[%clk 0:00:47.8]} 14... Nxf3+ {[%clk 0:02:14.8]} 15. gxf3 {[%clk 0:00:41.4]}
15... Qa5 {[%clk 0:01:45.4]} 16. Bd2 {[%clk 0:00:23.7]} 16... Bxe2 {[%clk
0:01:26.7]} 17. Nxe2 {[%clk 0:00:20.3]} 17... Qb6 {[%clk 0:01:21.4]} 18. Bc3
{[%clk 0:00:20.4]} 18... f6 {[%clk 0:01:20.4]} 19. f4 {[%clk 0:00:19.8]} 19...
Nd7 {[%clk 0:01:19.6]} 20. Ng3 {[%clk 0:00:19.9]} 20... Rfb8 {[%clk 0:01:18.5]}
21. Re1 {[%clk 0:00:19.8]} 21... Qb3 {[%clk 0:01:17.2]} 22. Qg4 {[%clk
0:00:19.2]} 22... Nf8 {[%clk 0:01:13.9]} 23. e5 {[%clk 0:00:19.2]} 23... Qxd5
{[%clk 0:01:04.5]} 24. exd6 {[%clk 0:00:19.3]} 24... exd6 {[%clk 0:00:50.9]} 25.
Rbd1 {[%clk 0:00:19.4]} 25... Qc6 {[%clk 0:00:50]} 26. f5 {[%clk 0:00:18.5]}
26... d5 {[%clk 0:00:43.1]} 27. fxg6 {[%clk 0:00:16.7]} 27... hxg6 {[%clk
0:00:41.1]} 28. h4 {[%clk 0:00:16.6]} 28... d4 {[%clk 0:00:41.1]} 29. Bd2 {[%clk
0:00:15.3]} 29... Rxb2 {[%clk 0:00:34]} 30. h5 {[%clk 0:00:15.1]} 30... Qc8
{[%clk 0:00:24.9]} 31. Qe4 {[%clk 0:00:12.3]} 1-0

[Event "*** Titled Tuesday Blitz"]
[Site "Chess.com"]
[Date "2021.04.20"]
[Round "11"]
[White "TimofeevAr"]
[Black "VMikhalevski"]
[Result "1-0"]
[WhiteElo "2826"]
[BlackElo "2714"]
[TimeControl "180+1"]
[EndTime "12:05:52 PDT"]
[Termination "TimofeevAr won by resignation"]

1. c4 {[%clk 0:03:00.9]} 1... Nf6 {[%clk 0:02:59.4]} 2. b3 {[%clk 0:02:59.8]}
2... g6 {[%clk 0:02:58.3]} 3. Bb2 {[%clk 0:03:00]} 3... Bg7 {[%clk 0:02:59.1]}
4. e4 {[%clk 0:03:00.3]} 4... d6 {[%clk 0:02:57.8]} 5. d3 {[%clk 0:02:59.1]}
5... O-O {[%clk 0:02:57.3]} 6. Nf3 {[%clk 0:02:59.3]} 6... c5 {[%clk 0:02:57.4]}
7. Nc3 {[%clk 0:02:56.2]} 7... Nc6 {[%clk 0:02:57.9]} 8. h3 {[%clk 0:02:56.2]}
8... Nd7 {[%clk 0:02:56.8]} 9. Be2 {[%clk 0:02:55.1]} 9... Nde5 {[%clk
0:02:56.5]} 10. O-O {[%clk 0:02:53.1]} 10... Nxf3+ {[%clk 0:02:54.3]} 11. Bxf3
{[%clk 0:02:53.4]} 11... Nd4 {[%clk 0:02:53.8]} 12. Be2 {[%clk 0:02:44.9]} 12...
f5 {[%clk 0:02:51.1]} 13. exf5 {[%clk 0:02:41.7]} 13... Bxf5 {[%clk 0:02:50.3]}
14. Bg4 {[%clk 0:02:41.4]} 14... Qd7 {[%clk 0:02:46.3]} 15. Bxf5 {[%clk
0:02:39.5]} 15... Rxf5 {[%clk 0:02:45.2]} 16. Qd2 {[%clk 0:02:33.3]} 16... Raf8
{[%clk 0:02:44]} 17. f4 {[%clk 0:02:21.8]} 17... Bh6 {[%clk 0:02:41.2]} 18. g3
{[%clk 0:02:03.5]} 18... g5 {[%clk 0:02:34.3]} 19. Nd5 {[%clk 0:01:58.1]} 19...
gxf4 {[%clk 0:02:32.2]} 20. g4 {[%clk 0:01:55.4]} 20... R5f7 {[%clk 0:02:16.8]}
21. Rae1 {[%clk 0:01:50.7]} 21... e6 {[%clk 0:02:13.2]} 22. Nc3 {[%clk
0:01:50.6]} 22... Kg7 {[%clk 0:02:06.2]} 23. Ne4 {[%clk 0:01:46.4]} 23... Kg8
{[%clk 0:01:54.3]} 24. Bxd4 {[%clk 0:01:40.2]} 24... cxd4 {[%clk 0:01:53.9]} 25.
Rf3 {[%clk 0:01:40.5]} 25... b6 {[%clk 0:01:48]} 26. Qe2 {[%clk 0:01:34.9]}
26... e5 {[%clk 0:01:43.9]} 27. Kh2 {[%clk 0:01:33.1]} 27... Bg7 {[%clk
0:01:40]} 28. Rg1 {[%clk 0:01:32.7]} 28... Kh8 {[%clk 0:01:38.1]} 29. b4 {[%clk
0:01:31.2]} 29... Rg8 {[%clk 0:01:34.8]} 30. b5 {[%clk 0:01:30.8]} 30... Bf8
{[%clk 0:01:34]} 31. a4 {[%clk 0:01:30.6]} 31... Be7 {[%clk 0:01:33.9]} 32. Rf2
{[%clk 0:01:28.9]} 32... Bh4 {[%clk 0:01:32.7]} 33. Rff1 {[%clk 0:01:27.6]}
33... Qe7 {[%clk 0:01:28.7]} 34. Qf3 {[%clk 0:01:27.4]} 34... Rgf8 {[%clk
0:01:26.1]} 35. Ra1 {[%clk 0:01:21]} 35... Bg3+ {[%clk 0:01:23.8]} 36. Kg2
{[%clk 0:01:20.8]} 36... Qd8 {[%clk 0:01:19.8]} 37. Rgc1 {[%clk 0:01:11.6]}
37... Bh4 {[%clk 0:01:17.4]} 38. Kh2 {[%clk 0:01:11.4]} 38... Rc7 {[%clk
0:01:15.7]} 39. a5 {[%clk 0:01:10.4]} 39... bxa5 {[%clk 0:01:12.9]} 40. Rg1
{[%clk 0:01:04.7]} 40... d5 {[%clk 0:01:10.3]} 41. cxd5 {[%clk 0:01:04.1]} 41...
Qxd5 {[%clk 0:01:08.5]} 42. g5 {[%clk 0:01:03.8]} 42... Rc2+ {[%clk 0:01:03.8]}
43. Kh1 {[%clk 0:01:03.9]} 43... Rfc8 {[%clk 0:00:54]} 44. g6 {[%clk 0:00:59.8]}
44... Rg8 {[%clk 0:00:43.5]} 45. Qh5 {[%clk 0:00:58.1]} 45... Qd7 {[%clk
0:00:33.5]} 46. Qxh4 {[%clk 0:00:56.5]} 46... Rg7 {[%clk 0:00:26.5]} 47. gxh7
{[%clk 0:00:44.4]} 47... Rc8 {[%clk 0:00:18.7]} 48. Rxg7 {[%clk 0:00:39.6]}
48... Qxg7 {[%clk 0:00:18.6]} 49. Rg1 {[%clk 0:00:40.2]} 49... Qf7 {[%clk
0:00:17.6]} 50. Qf6+ {[%clk 0:00:39.4]} 1-0

[Event "*** Titled Tuesday Blitz"]
[Site "Chess.com"]
[Date "2021.04.20"]
[Round "11"]
[White "1Hf3"]
[Black "manuelsobrinho"]
[Result "0-1"]
[WhiteElo "1984"]
[BlackElo "2131"]
[TimeControl "180+1"]
[EndTime "12:05:53 PDT"]
[Termination "manuelsobrinho won by resignation"]

1. d4 {[%clk 0:02:59.5]} 1... Nf6 {[%clk 0:02:54.3]} 2. c4 {[%clk 0:02:58.6]}
2... e6 {[%clk 0:02:54]} 3. Nf3 {[%clk 0:02:58.3]} 3... d5 {[%clk 0:02:52]} 4.
Nc3 {[%clk 0:02:56.9]} 4... Bd6 {[%clk 0:02:50]} 5. Bg5 {[%clk 0:02:49.2]} 5...
c6 {[%clk 0:02:39.6]} 6. Be3 {[%clk 0:02:49.1]} 6... dxc4 {[%clk 0:02:35.6]} 7.
Bg5 {[%clk 0:02:43.6]} 7... b5 {[%clk 0:02:29.9]} 8. e4 {[%clk 0:02:42.1]} 8...
Be7 {[%clk 0:02:28.1]} 9. Qc2 {[%clk 0:02:32.8]} 9... Bb7 {[%clk 0:02:24.2]} 10.
a4 {[%clk 0:02:26.4]} 10... a6 {[%clk 0:02:21.1]} 11. b3 {[%clk 0:02:19]} 11...
b4 {[%clk 0:02:19]} 12. Na2 {[%clk 0:02:10.8]} 12... c3 {[%clk 0:02:16.2]} 13.
a5 {[%clk 0:02:06.8]} 13... c5 {[%clk 0:02:15.8]} 14. e5 {[%clk 0:01:47.5]}
14... Nd5 {[%clk 0:02:11.2]} 15. Bxe7 {[%clk 0:01:46.6]} 15... Kxe7 {[%clk
0:02:08.5]} 16. dxc5 {[%clk 0:01:40.6]} 16... Qxa5 {[%clk 0:02:08.3]} 17. Bc4
{[%clk 0:01:32.5]} 17... Qxc5 {[%clk 0:01:58.9]} 18. O-O {[%clk 0:01:29.4]}
18... Nd7 {[%clk 0:01:52.2]} 19. Nc1 {[%clk 0:01:27.9]} 19... Nf4 {[%clk
0:01:47.1]} 20. Nd3 {[%clk 0:01:11.7]} 20... Nxd3 {[%clk 0:01:46.2]} 21. Qxd3
{[%clk 0:01:11.1]} 21... Nxe5 {[%clk 0:01:44.2]} 22. Nxe5 {[%clk 0:01:09.9]}
22... Qxe5 {[%clk 0:01:45.1]} 23. Bxa6 {[%clk 0:01:08.2]} 23... Qd5 {[%clk
0:01:28.2]} 24. Qxd5 {[%clk 0:00:19.9]} 24... Bxd5 {[%clk 0:01:25.7]} 25. Bc4
{[%clk 0:00:03.8]} 25... Bxc4 {[%clk 0:01:20.7]} 26. bxc4 {[%clk 0:00:04.7]}
26... b3 {[%clk 0:01:18.3]} 27. Rab1 {[%clk 0:00:01.9]} 27... b2 {[%clk
0:00:39.8]} 28. c5 {[%clk 0:00:02.4]} 28... Rhb8 {[%clk 0:00:27.9]} 29. c6
{[%clk 0:00:02.8]} 29... c2 {[%clk 0:00:17.6]} 30. c7 {[%clk 0:00:03.7]} 30...
cxb1=Q {[%clk 0:00:14.1]} 31. cxb8=Q {[%clk 0:00:04.6]} 31... Qxf1+ {[%clk
0:00:12]} 32. Kxf1 {[%clk 0:00:04.7]} 32... Rxb8 {[%clk 0:00:11.5]} 33. Ke2
{[%clk 0:00:05]} 0-1

[Event "*** Titled Tuesday Blitz"]
[Site "Chess.com"]
[Date "2021.04.20"]
[Round "11"]
[White "vanyakuba"]
[Black "Pelopidass"]
[Result "1/2-1/2"]
[WhiteElo "2406"]
[BlackElo "2547"]
[TimeControl "180+1"]
[EndTime "12:05:54 PDT"]
[Termination "Game drawn by repetition"]

1. e4 {[%clk 0:03:00.9]} 1... c5 {[%clk 0:02:59.7]} 2. c3 {[%clk 0:03:00.8]}
2... d5 {[%clk 0:02:57.2]} 3. exd5 {[%clk 0:03:00.9]} 3... Qxd5 {[%clk
0:02:58.1]} 4. d4 {[%clk 0:03:01.4]} 4... Nc6 {[%clk 0:02:56.4]} 5. Nf3 {[%clk
0:03:01.4]} 5... Bf5 {[%clk 0:02:54.3]} 6. Be3 {[%clk 0:02:59.6]} 6... Nf6
{[%clk 0:02:50.5]} 7. c4 {[%clk 0:02:44.6]} 7... Qd8 {[%clk 0:02:41.4]} 8. d5
{[%clk 0:02:44.4]} 8... Nb4 {[%clk 0:02:41.1]} 9. Na3 {[%clk 0:02:40.5]} 9...
Qa5 {[%clk 0:02:36.7]} 10. Bd2 {[%clk 0:01:48.5]} 10... e6 {[%clk 0:02:22.3]}
11. Be2 {[%clk 0:01:43.2]} 11... Be7 {[%clk 0:02:13.3]} 12. O-O {[%clk
0:01:42.1]} 12... Rd8 {[%clk 0:02:11.8]} 13. Nb5 {[%clk 0:01:27.6]} 13... a6
{[%clk 0:01:51.9]} 14. d6 {[%clk 0:01:27.5]} 14... axb5 {[%clk 0:01:33.9]} 15.
dxe7 {[%clk 0:01:27]} 15... Kxe7 {[%clk 0:01:33.9]} 16. a3 {[%clk 0:01:22.2]}
16... Rxd2 {[%clk 0:01:15.9]} 17. Qxd2 {[%clk 0:01:07.8]} 17... Nc6 {[%clk
0:01:15.8]} 18. Qxa5 {[%clk 0:00:53]} 18... Nxa5 {[%clk 0:01:16.7]} 19. cxb5
{[%clk 0:00:53.1]} 19... Nb3 {[%clk 0:01:03.8]} 20. Rad1 {[%clk 0:00:49.1]}
20... Bc2 {[%clk 0:01:04.1]} 21. Rde1 {[%clk 0:00:48.5]} 21... Rd8 {[%clk
0:00:46.1]} 22. Bd1 {[%clk 0:00:39.8]} 22... Bxd1 {[%clk 0:00:44.5]} 23. Rxd1
{[%clk 0:00:40]} 23... Nd4 {[%clk 0:00:45.2]} 24. Nxd4 {[%clk 0:00:29.6]} 24...
cxd4 {[%clk 0:00:46.1]} 25. Rfe1 {[%clk 0:00:23.3]} 25... Rd5 {[%clk 0:00:43.8]}
26. a4 {[%clk 0:00:22.9]} 26... Nd7 {[%clk 0:00:42]} 27. Re4 {[%clk 0:00:18.6]}
27... e5 {[%clk 0:00:40]} 28. f4 {[%clk 0:00:18.5]} 28... f5 {[%clk 0:00:39.9]}
29. Rxe5+ {[%clk 0:00:11.5]} 29... Nxe5 {[%clk 0:00:38.8]} 30. fxe5 {[%clk
0:00:12.4]} 30... Ke6 {[%clk 0:00:38.6]} 31. Re1 {[%clk 0:00:09.8]} 31... d3
{[%clk 0:00:37.9]} 32. Kf2 {[%clk 0:00:09.8]} 32... d2 {[%clk 0:00:37.4]} 33.
Rd1 {[%clk 0:00:10.1]} 33... Kxe5 {[%clk 0:00:37.6]} 34. Ke3 {[%clk 0:00:10.3]}
34... f4+ {[%clk 0:00:34.2]} 35. Ke2 {[%clk 0:00:10.2]} 35... Rd4 {[%clk
0:00:34.8]} 36. b3 {[%clk 0:00:07.6]} 36... Rb4 {[%clk 0:00:31.2]} 37. Rb1
{[%clk 0:00:07.4]} 37... Rd4 {[%clk 0:00:30.7]} 38. Rd1 {[%clk 0:00:03.4]} 38...
Rb4 {[%clk 0:00:29.1]} 39. Rb1 {[%clk 0:00:03.6]} 39... Rd4 {[%clk 0:00:21.6]}
40. Rd1 {[%clk 0:00:03.9]} 1/2-1/2

[Event "*** Titled Tuesday Blitz"]
[Site "Chess.com"]
[Date "2021.04.20"]
[Round "11"]
[White "bricolageur"]
[Black "anon481216"]
[Result "1/2-1/2"]
[WhiteElo "2401"]
[BlackElo "2538"]
[TimeControl "180+1"]
[EndTime "12:05:56 PDT"]
[Termination "Game drawn by repetition"]

1. e4 {[%clk 0:03:00.9]} 1... c5 {[%clk 0:02:59.7]} 2. Nf3 {[%clk 0:03:01]} 2...
d6 {[%clk 0:02:59.8]} 3. d4 {[%clk 0:03:01.6]} 3... cxd4 {[%clk 0:03:00.1]} 4.
Nxd4 {[%clk 0:03:02.5]} 4... Nf6 {[%clk 0:03:00.4]} 5. Nc3 {[%clk 0:03:03.2]}
5... a6 {[%clk 0:03:00.8]} 6. Bc4 {[%clk 0:03:03.7]} 6... e6 {[%clk 0:03:00.7]}
7. a3 {[%clk 0:03:04.2]} 7... b5 {[%clk 0:02:59.9]} 8. Ba2 {[%clk 0:03:04.1]}
8... Be7 {[%clk 0:02:59.9]} 9. g4 {[%clk 0:03:02.9]} 9... O-O {[%clk 0:02:51.7]}
10. g5 {[%clk 0:03:03.4]} 10... Ne8 {[%clk 0:02:51.1]} 11. Rg1 {[%clk
0:03:03.5]} 11... Bd7 {[%clk 0:02:45.2]} 12. Rg3 {[%clk 0:03:03]} 12... Nc6
{[%clk 0:02:37]} 13. Be3 {[%clk 0:02:53.5]} 13... g6 {[%clk 0:02:21.2]} 14. f4
{[%clk 0:02:36.2]} 14... Ng7 {[%clk 0:02:18.8]} 15. Nxc6 {[%clk 0:02:24.5]}
15... Bxc6 {[%clk 0:02:18.4]} 16. Qg4 {[%clk 0:02:19.3]} 16... Qc8 {[%clk
0:01:52.9]} 17. O-O-O {[%clk 0:02:03.5]} 17... a5 {[%clk 0:01:48.8]} 18. Bd4
{[%clk 0:01:43.2]} 18... b4 {[%clk 0:01:36.4]} 19. Qh4 {[%clk 0:01:18.2]} 19...
Nh5 {[%clk 0:01:26.7]} 20. f5 {[%clk 0:01:06.6]} 20... bxc3 {[%clk 0:01:19.6]}
21. Rxc3 {[%clk 0:00:54.2]} 21... Qd7 {[%clk 0:01:01.5]} 22. fxe6 {[%clk
0:00:45.9]} 22... fxe6 {[%clk 0:01:01.4]} 23. Rxc6 {[%clk 0:00:46.1]} 23... Qxc6
{[%clk 0:01:01.3]} 24. Bxe6+ {[%clk 0:00:46.4]} 24... Rf7 {[%clk 0:01:01.4]} 25.
Rf1 {[%clk 0:00:20.1]} 25... Rf8 {[%clk 0:01:00.2]} 26. Qg4 {[%clk 0:00:12.5]}
26... Ng7 {[%clk 0:00:43.7]} 27. Ba2 {[%clk 0:00:08.3]} 27... Qe8 {[%clk
0:00:25.3]} 28. Qf4 {[%clk 0:00:03.9]} 28... Nh5 {[%clk 0:00:14.7]} 29. Qg4
{[%clk 0:00:02.9]} 29... Ng7 {[%clk 0:00:11.6]} 30. Qf4 {[%clk 0:00:02]} 30...
Nh5 {[%clk 0:00:05.2]} 31. Qg4 {[%clk 0:00:02.2]} 31... a4 {[%clk 0:00:04.1]}
32. Bd5 {[%clk 0:00:01.8]} 32... Ng7 {[%clk 0:00:03.8]} 33. Qf4 {[%clk
0:00:01.9]} 33... Nh5 {[%clk 0:00:03.6]} 34. Qg4 {[%clk 0:00:02.4]} 34... Ng7
{[%clk 0:00:02.8]} 35. Qf4 {[%clk 0:00:02.9]} 35... Nh5 {[%clk 0:00:02.5]} 36.
Qg4 {[%clk 0:00:03.5]} 1/2-1/2

[Event "*** Titled Tuesday Blitz"]
[Site "Chess.com"]
[Date "2021.04.20"]
[Round "11"]
[White "KubaGepard"]
[Black "AlexPapasimakopoulos"]
[Result "1-0"]
[WhiteElo "2432"]
[BlackElo "2573"]
[TimeControl "180+1"]
[EndTime "12:05:56 PDT"]
[Termination "KubaGepard won by checkmate"]

1. d4 {[%clk 0:03:00.9]} 1... e6 {[%clk 0:02:59.7]} 2. Nf3 {[%clk 0:03:00.2]}
2... Nf6 {[%clk 0:03:00]} 3. Bf4 {[%clk 0:02:58.7]} 3... c5 {[%clk 0:03:00]} 4.
e3 {[%clk 0:02:58.4]} 4... Qb6 {[%clk 0:03:00.1]} 5. Na3 {[%clk 0:02:53.9]} 5...
d5 {[%clk 0:02:32.1]} 6. Nb5 {[%clk 0:02:52.4]} 6... Na6 {[%clk 0:02:30.9]} 7.
c3 {[%clk 0:02:49.2]} 7... Bd7 {[%clk 0:02:06.9]} 8. a4 {[%clk 0:02:47.4]} 8...
Be7 {[%clk 0:01:56]} 9. Ne5 {[%clk 0:02:44.4]} 9... O-O {[%clk 0:01:54.2]} 10.
Nxd7 {[%clk 0:02:43.5]} 10... Nxd7 {[%clk 0:01:53.6]} 11. dxc5 {[%clk
0:02:38.2]} 11... Naxc5 {[%clk 0:01:44.1]} 12. Be2 {[%clk 0:02:34.4]} 12... a6
{[%clk 0:01:40.8]} 13. a5 {[%clk 0:02:33.4]} 13... Qc6 {[%clk 0:01:37.6]} 14.
Nd4 {[%clk 0:02:33.8]} 14... Qc8 {[%clk 0:01:31.3]} 15. Bg3 {[%clk 0:02:30.4]}
15... Ne4 {[%clk 0:01:28.8]} 16. f3 {[%clk 0:02:27.9]} 16... Nxg3 {[%clk
0:01:25]} 17. hxg3 {[%clk 0:02:27.3]} 17... Qc7 {[%clk 0:01:24.1]} 18. Kf2
{[%clk 0:02:25.3]} 18... h6 {[%clk 0:01:19.7]} 19. Qd3 {[%clk 0:02:23]} 19...
Nc5 {[%clk 0:01:11.2]} 20. Qc2 {[%clk 0:02:19.9]} 20... Rac8 {[%clk 0:01:09.2]}
21. g4 {[%clk 0:02:18.9]} 21... Bf6 {[%clk 0:00:40.6]} 22. Rh5 {[%clk
0:02:15.5]} 22... e5 {[%clk 0:00:37.4]} 23. Nf5 {[%clk 0:02:13.8]} 23... e4
{[%clk 0:00:37.9]} 24. f4 {[%clk 0:02:10.9]} 24... Qd7 {[%clk 0:00:29.9]} 25.
Rah1 {[%clk 0:02:06.2]} 25... Rfd8 {[%clk 0:00:27.6]} 26. Ng3 {[%clk 0:01:54.6]}
26... Be7 {[%clk 0:00:23.6]} 27. g5 {[%clk 0:01:53.5]} 27... Bf8 {[%clk
0:00:23.9]} 28. gxh6 {[%clk 0:01:50.4]} 28... g6 {[%clk 0:00:24.1]} 29. R5h4
{[%clk 0:01:45.3]} 29... f5 {[%clk 0:00:23.7]} 30. Qd1 {[%clk 0:01:41.4]} 30...
Ne6 {[%clk 0:00:21.7]} 31. Bf1 {[%clk 0:01:29.8]} 31... Kh7 {[%clk 0:00:20.4]}
32. Ne2 {[%clk 0:01:28.8]} 32... Be7 {[%clk 0:00:20.4]} 33. R4h2 {[%clk
0:01:27.5]} 33... Bf6 {[%clk 0:00:21]} 34. g3 {[%clk 0:01:22.8]} 34... Rg8
{[%clk 0:00:21.1]} 35. Qd2 {[%clk 0:01:22.3]} 35... g5 {[%clk 0:00:21.5]} 36.
Bh3 {[%clk 0:01:22]} 36... g4 {[%clk 0:00:21.3]} 37. Bf1 {[%clk 0:01:22.2]}
37... Nc5 {[%clk 0:00:21.9]} 38. Nd4 {[%clk 0:01:21.5]} 38... Bxd4 {[%clk
0:00:21.3]} 39. Qxd4 {[%clk 0:01:21.2]} 39... Qd6 {[%clk 0:00:21.6]} 40. Be2
{[%clk 0:01:09.1]} 40... Nb3 {[%clk 0:00:21.8]} 41. Qg7+ {[%clk 0:01:07.2]}
41... Rxg7 {[%clk 0:00:21.6]} 42. hxg7+ {[%clk 0:01:07.7]} 42... Kxg7 {[%clk
0:00:21.1]} 43. Rh7+ {[%clk 0:01:07.7]} 43... Kg8 {[%clk 0:00:21]} 44. Rh8+
{[%clk 0:01:07.1]} 44... Kg7 {[%clk 0:00:21.2]} 45. Rxc8 {[%clk 0:01:06.9]}
45... d4 {[%clk 0:00:19.4]} 46. Rch8 {[%clk 0:01:02.5]} 46... dxe3+ {[%clk
0:00:19.1]} 47. Kg2 {[%clk 0:01:02.7]} 47... Qd2 {[%clk 0:00:18.5]} 48. R1h7+
{[%clk 0:01:02.1]} 48... Kf6 {[%clk 0:00:19]} 49. Rh6+ {[%clk 0:01:01.2]} 49...
Ke7 {[%clk 0:00:19.3]} 50. R6h7+ {[%clk 0:01:00.1]} 50... Ke6 {[%clk 0:00:18.8]}
51. Kf1 {[%clk 0:00:56]} 51... Nc1 {[%clk 0:00:17.8]} 52. Bc4+ {[%clk
0:00:53.5]} 52... Kf6 {[%clk 0:00:15.6]} 53. Rh6+ {[%clk 0:00:47.3]} 53... Kg7
{[%clk 0:00:15.5]} 54. R8h7+ {[%clk 0:00:47.1]} 54... Kf8 {[%clk 0:00:15.6]} 55.
Rf7+ {[%clk 0:00:47.1]} 55... Ke8 {[%clk 0:00:16]} 56. Rh8# {[%clk 0:00:46.5]}
1-0

[Event "*** Titled Tuesday Blitz"]
[Site "Chess.com"]
[Date "2021.04.20"]
[Round "11"]
[White "MateusViageiro"]
[Black "MrChampion_Coach"]
[Result "0-1"]
[WhiteElo "2283"]
[BlackElo "2407"]
[TimeControl "180+1"]
[EndTime "12:05:56 PDT"]
[Termination "MrChampion_Coach won by resignation"]

1. e4 {[%clk 0:02:57.7]} 1... c5 {[%clk 0:02:59]} 2. Nf3 {[%clk 0:02:52.8]} 2...
d6 {[%clk 0:02:58.5]} 3. d4 {[%clk 0:02:52]} 3... cxd4 {[%clk 0:02:59.4]} 4.
Nxd4 {[%clk 0:02:52.7]} 4... Nf6 {[%clk 0:02:59.3]} 5. Nc3 {[%clk 0:02:52.1]}
5... a6 {[%clk 0:03:00.2]} 6. Bg5 {[%clk 0:02:51.6]} 6... e6 {[%clk 0:02:55.1]}
7. f4 {[%clk 0:02:50.7]} 7... h6 {[%clk 0:02:54.6]} 8. Bh4 {[%clk 0:02:50.1]}
8... Qb6 {[%clk 0:02:47.3]} 9. a3 {[%clk 0:02:47.8]} 9... Be7 {[%clk 0:02:28.9]}
10. Bf2 {[%clk 0:02:47]} 10... Qc7 {[%clk 0:02:27.5]} 11. Qf3 {[%clk 0:02:44.9]}
11... b5 {[%clk 0:02:18.7]} 12. O-O-O {[%clk 0:02:41.1]} 12... Bb7 {[%clk
0:02:16.7]} 13. g4 {[%clk 0:02:36]} 13... Nbd7 {[%clk 0:02:13.7]} 14. g5 {[%clk
0:02:28.9]} 14... hxg5 {[%clk 0:02:11.5]} 15. fxg5 {[%clk 0:02:28.9]} 15... Ne5
{[%clk 0:02:08.4]} 16. Qg2 {[%clk 0:02:23.5]} 16... Nfg4 {[%clk 0:02:03.8]} 17.
g6 {[%clk 0:02:21.2]} 17... Nxf2 {[%clk 0:01:46.4]} 18. gxf7+ {[%clk 0:02:18.9]}
18... Kxf7 {[%clk 0:01:47.3]} 19. Qxf2+ {[%clk 0:02:18.6]} 19... Bf6 {[%clk
0:01:46.6]} 20. Bxb5 {[%clk 0:02:11]} 20... axb5 {[%clk 0:01:35.6]} 21. Ndxb5
{[%clk 0:02:10.7]} 21... Qb8 {[%clk 0:01:16.9]} 22. Nxd6+ {[%clk 0:02:09.7]}
22... Ke7 {[%clk 0:01:15.8]} 23. Rhg1 {[%clk 0:02:02.4]} 23... Ra6 {[%clk
0:01:07.1]} 24. Ncb5 {[%clk 0:01:55.6]} 24... Rc6 {[%clk 0:00:57.5]} 25. Kb1
{[%clk 0:01:33.4]} 25... Ba6 {[%clk 0:00:57]} 26. a4 {[%clk 0:01:29.4]} 26...
Rd8 {[%clk 0:00:49.9]} 27. Rxg7+ {[%clk 0:01:14]} 27... Bxg7 {[%clk 0:00:41.1]}
28. Qh4+ {[%clk 0:01:14.1]} 28... Kf8 {[%clk 0:00:37.1]} 29. Rf1+ {[%clk
0:01:05.7]} 29... Kg8 {[%clk 0:00:36.8]} 30. Rg1 {[%clk 0:01:03.2]} 30... Rd7
{[%clk 0:00:24.9]} 31. Qf6 {[%clk 0:00:53.1]} 31... Rcxd6 {[%clk 0:00:18.8]} 32.
Nxd6 {[%clk 0:00:46.5]} 32... Qxd6 {[%clk 0:00:17.4]} 33. Qg5 {[%clk 0:00:43.1]}
33... Bc4 {[%clk 0:00:14.8]} 34. b3 {[%clk 0:00:40.7]} 34... Nf3 {[%clk
0:00:10.4]} 35. Qxg7+ {[%clk 0:00:29.9]} 35... Rxg7 {[%clk 0:00:09.6]} 36. Rxg7+
{[%clk 0:00:30.8]} 36... Kxg7 {[%clk 0:00:10.1]} 37. bxc4 {[%clk 0:00:31.7]}
37... Qb4+ {[%clk 0:00:10.2]} 38. Kc1 {[%clk 0:00:31.5]} 38... Nd2 {[%clk
0:00:11.1]} 39. c5 {[%clk 0:00:30.2]} 39... Nc4 {[%clk 0:00:09.3]} 40. c6 {[%clk
0:00:30]} 40... Qd2+ {[%clk 0:00:09.4]} 41. Kb1 {[%clk 0:00:30.3]} 41... Qd1+
{[%clk 0:00:10.3]} 42. Ka2 {[%clk 0:00:30.3]} 42... Qxc2+ {[%clk 0:00:11.2]} 0-1